bitfinex/quotes_ETHUSD_20251017
["timestamp","ask_amount","ask_price","bid_price","bid_amount"]
[1760739569048,0.099,3876.8,3876.5,3.36606422]
[1760739570039,0.2092,3876.9,3876.5,3.36606422]
[1760739570434,0.002,3877.0,3876.5,3.36606422]
[1760739571271,0.2081,3876.8,3876.5,3.36606422]
[1760739572331,0.2081,3876.8,3876.5,2.83724658]
[1760739572579,0.10010001,3876.6,3876.5,2.83724658]
[1760739575538,1e-08,3876.6,3876.5,2.83724658]
[1760739575769,0.10010001,3876.6,3876.5,2.83724658]
[1760739578276,1e-08,3876.6,3876.5,2.83724658]
[1760739578431,1e-08,3876.6,3876.5,3.37894422]
[1760739578768,1e-08,3876.6,3876.5,2.83724658]
[1760739579439,0.10220001,3876.6,3876.5,2.83724658]
[1760739580067,0.10220001,3876.6,3876.5,2.57964658]
[1760739582710,1e-08,3876.6,3876.5,2.57964658]
[1760739587416,0.10220001,3876.6,3876.5,2.57964658]
[1760739589188,1e-08,3876.6,3876.5,2.57964658]
[1760739601314,0.10320001,3876.6,3876.5,2.57964658]
[1760739602398,0.10320001,3876.6,3876.1,0.001]
[1760739602399,1e-08,3876.6,3876.1,0.001]
[1760739602603,0.78207778,3876.6,3876.5,2.57964658]
[1760739603303,0.78207778,3876.6,3876.3,2.5797316]
[1760739603304,0.88527778,3876.6,3876.3,2.5797316]
[1760739603551,0.1288,3876.3,3876.2,2.57984624]
[1760739603746,0.232,3876.3,3876.2,2.57984624]
[1760739606245,0.27697051,3876.3,3876.2,2.57984624]
[1760739606542,0.232,3876.3,3876.2,2.57984624]
[1760739610859,0.1288,3876.3,3876.2,2.57984624]
[1760739611067,0.1288,3876.3,3876.2,3.04694624]
[1760739611432,0.1288,3876.3,3876.2,2.57984624]
[1760739613665,0.232,3876.3,3876.1,2.58088741]
[1760739613833,1.01097806,3876.2,3876.1,2.58091279]
[1760739614168,0.1288,3876.2,3876.1,2.58091279]
[1760739614344,0.1288,3876.2,3876.1,3.04801279]
[1760739617066,0.1288,3876.2,3876.1,2.58091279]
[1760739618082,0.002,3876.3,3876.2,2.57984624]
[1760739618582,0.002,3876.3,3876.2,3.04694624]
[1760739620080,0.101,3876.3,3876.2,2.57984624]
[1760739620254,0.002,3876.3,3876.2,2.57984624]
[1760739620987,0.1308,3876.3,3876.2,2.57984624]
[1760739621857,0.1308,3876.3,3876.1,3.03049444]
[1760739621858,5.86007766,3876.3,3876.1,3.03049444]
[1760739622058,0.72996994,3876.2,3876.1,0.001]
[1760739622452,0.72996994,3876.2,3876.1,2.58091279]
[1760739622855,0.72996994,3876.2,3876.1,0.001]
[1760739623172,0.75570216,3876.2,3876.1,0.001]
[1760739623376,0.72996994,3876.2,3876.1,0.001]
[1760739624178,0.72996994,3876.2,3876.1,2.58091279]
[1760739625994,0.63096994,3876.2,3876.1,2.58091279]
[1760739626365,0.002,3876.3,3876.2,2.57984624]
[1760739626565,0.101,3876.3,3876.2,2.57984624]
[1760739627400,0.002,3876.3,3876.2,2.57984624]
[1760739635604,0.4066664,3876.3,3876.2,2.57984624]
[1760739637271,0.4066664,3876.3,3876.2,3.02984624]
[1760739637477,0.4066664,3876.3,3876.2,4.01981854]
[1760739638100,0.4066664,3876.3,3876.2,2.98651264]
[1760739638812,0.4066664,3876.3,3876.2,3.43651264]
[1760739638978,0.4066664,3876.3,3876.2,2.98651264]
[1760739639723,0.5354664,3876.3,3876.2,2.98651264]
[1760739641144,0.58043675,3876.3,3876.2,2.98651264]
[1760739645447,0.1308,3876.3,3876.2,2.98651264]
[1760739646042,0.1308,3876.3,3876.2,3.65881264]
[1760739646716,0.1308,3876.3,3876.2,2.98651264]
[1760739647844,0.1308,3876.3,3876.2,3.43651264]
[1760739648861,0.1308,3876.3,3876.2,2.98651264]
[1760739649068,0.1308,3876.3,3876.2,3.43651264]
[1760739649556,0.58042769,3876.3,3876.2,3.43651264]
[1760739652829,0.17577101,3876.3,3876.2,3.43651264]
[1760739657473,0.58043025,3876.3,3876.2,3.43651264]
[1760739661490,0.58043025,3876.3,3876.2,2.98651264]
[1760739661696,0.68163025,3876.3,3876.2,2.98651264]
[1760739661989,0.27697101,3876.3,3876.2,2.98651264]
[1760739662185,0.17577101,3876.3,3876.2,2.98651264]
[1760739663584,1.728,3876.2,3876.1,2.58090254]
[1760739663790,1.8292,3876.2,3876.1,2.58090254]
[1760739663989,1.578,3876.2,3876.1,2.58090254]
[1760739665161,1.98267285,3876.2,3876.1,2.58090254]
[1760739669695,0.40467285,3876.2,3876.1,2.58090254]
[1760739669902,0.40467285,3876.2,3876.1,3.26060254]
[1760739670293,0.40467285,3876.2,3876.1,3.66527539]
[1760739672587,0.40467285,3876.2,3876.1,3.43907539]
[1760739673418,0.40467285,3876.2,3876.1,3.66527539]
[1760739674208,0.40467285,3876.2,3876.1,2.98557539]
[1760739675799,0.40467285,3876.2,3876.1,3.43907539]
[1760739676492,0.40467285,3876.2,3876.1,2.98557539]
[1760739677625,0.40467285,3876.2,3876.1,3.66527539]
[1760739679127,0.40467285,3876.2,3876.1,3.21177539]
[1760739679433,0.40467285,3876.2,3876.1,2.98557539]
[1760739682028,0.40467285,3876.2,3876.1,3.43907539]
[1760739682526,0.40667285,3876.2,3876.1,3.43907539]
[1760739683438,0.40667285,3876.2,3876.1,2.98557539]
[1760739684006,0.40667285,3876.2,3876.1,0.40567285]
[1760739684225,7.73558447,3876.2,3876.1,2.58091279]
[1760739685235,2.93417789,3876.2,3876.1,2.58091279]
[1760739685403,7.03727943,3876.2,3876.1,2.58091279]
[1760739687034,23.71896743,3876.2,3876.1,0.001]
[1760739687203,15.38854558,3876.2,3876.1,0.001]
[1760739687905,15.38854558,3876.2,3876.1,2.58091279]
[1760739687906,10.07604858,3876.2,3876.1,2.58091279]
[1760739688516,11.72235344,3876.2,3876.1,2.58091279]
[1760739689031,8.27891144,3876.2,3876.1,2.58091279]
[1760739689235,8.17771144,3876.2,3876.1,2.58091279]
[1760739689540,6.53140658,3876.2,3876.1,2.58091279]
[1760739690104,6.93609119,3876.2,3876.1,2.58091279]
[1760739690737,6.98106277,3876.2,3876.1,2.58091279]
[1760739691233,6.57637816,3876.2,3876.1,2.58091279]
[1760739691426,17.29372616,3876.2,3876.1,2.58091279]
[1760739691627,15.96835016,3876.2,3876.1,2.58091279]
[1760739692004,18.10268518,3876.2,3876.1,0.001]
[1760739692204,18.20388518,3876.2,3876.1,0.001]
[1760739692406,21.91287318,3876.2,3876.1,0.001]
[1760739692635,21.91287318,3876.2,3876.1,2.58091279]
[1760739693062,21.91287318,3876.2,3876.1,0.001]
[1760739693472,18.28725318,3876.2,3876.1,2.58091279]
[1760739694294,18.69194989,3876.2,3876.1,2.58091279]
[1760739694437,18.70752689,3876.2,3876.1,2.58091279]
[1760739695469,18.70752689,3876.2,3876.1,0.001]
[1760739695665,23.26714689,3876.2,3876.1,0.001]
[1760739695870,23.26714689,3876.2,3876.1,2.58091279]
[1760739696742,23.26014689,3876.2,3876.1,2.58091279]
[1760739697140,23.26014689,3876.2,3876.1,0.001]
[1760739697561,23.26014689,3876.2,3876.1,2.58091279]
[1760739698275,23.26014689,3876.2,3876.1,0.001]
[1760739698840,23.26714689,3876.2,3876.1,2.58091279]
[1760739699869,23.22798689,3876.2,3876.1,2.58091279]
[1760739700292,23.22798689,3876.2,3876.1,0.001]
[1760739700895,29.32169989,3876.2,3876.1,0.001]
[1760739702290,29.06270089,3876.2,3876.1,0.001]
[1760739702483,28.53289989,3876.2,3876.1,0.001]
[1760739704101,31.43496789,3876.2,3876.1,0.001]
[1760739704265,29.53632789,3876.2,3876.1,0.001]
[1760739704466,29.09807689,3876.2,3876.1,0.001]
[1760739704764,35.48307689,3876.2,3876.1,0.001]
[1760739704967,45.70280989,3876.2,3876.1,0.001]
[1760739705178,50.50421647,3876.2,3876.1,0.001]
[1760739705574,48.91726447,3876.2,3876.1,0.001]
[1760739706099,50.50421647,3876.2,3876.1,0.001]
[1760739706299,50.45924489,3876.2,3876.1,0.001]
[1760739706500,49.48690889,3876.2,3876.1,0.001]
[1760739707002,50.45924489,3876.2,3876.1,0.001]
[1760739707299,50.74501115,3876.2,3876.1,0.001]
[1760739708687,50.78999301,3876.2,3876.1,0.001]
[1760739710837,50.34031444,3876.2,3876.1,0.001]
[1760739711413,46.14403644,3876.2,3876.1,0.001]
[1760739712199,1.728,3876.1,3875.8,0.001]
[1760739712398,31.9475,3875.9,3875.8,0.001]
[1760739712797,31.8568,3875.8,3875.7,0.001]
[1760739713087,31.8568,3875.8,3875.4,0.001]
[1760739713088,31.728,3875.5,3875.4,0.001]
[1760739713520,31.8303,3875.5,3875.3,0.001]
[1760739713745,31.8303,3875.5,3875.0,0.001]
[1760739713746,1.728,3875.3,3875.0,0.001]
[1760739714035,31.728,3875.1,3875.0,0.001]
[1760739714257,1.8568,3875.0,3874.6,0.001]
[1760739714530,28.35177816,3874.7,3874.6,0.001]
[1760739714890,28.45697816,3874.7,3874.6,0.001]
[1760739715089,30.80686244,3874.7,3874.6,0.001]
[1760739715295,31.38940733,3874.7,3874.6,0.001]
[1760739716128,38.53031233,3874.7,3874.6,0.001]
[1760739717029,37.33369533,3874.7,3874.6,0.001]
[1760739717229,38.15306633,3874.7,3874.6,0.001]
[1760739718328,30.0,3874.5,3873.6,0.4342]
[1760739718524,18.20113,3873.7,3873.6,0.4342]
[1760739719034,18.65107642,3873.7,3873.6,0.4342]
[1760739719330,18.76228042,3873.7,3873.6,0.4435]
[1760739719621,18.23599842,3873.7,3873.6,0.4435]
[1760739720326,19.40717842,3873.7,3873.6,0.4435]
[1760739720527,21.88854978,3873.7,3873.6,0.4435]
[1760739720929,21.8435543,3873.7,3873.6,0.4435]
[1760739721098,21.43860336,3873.7,3873.6,0.4435]
[1760739721297,23.52948336,3873.7,3873.6,0.4435]
[1760739722034,23.52948336,3873.7,3873.6,0.001]
[1760739722221,4.31457136,3873.7,3873.6,0.001]
[1760739722422,31.85893222,3873.7,3873.6,0.001]
[1760739722629,31.8332,3873.7,3873.6,0.001]
[1760739723537,32.11896626,3873.7,3873.6,0.001]
[1760739724228,32.5239931,3873.7,3873.6,0.001]
[1760739727309,32.5239931,3873.7,3873.3,0.001]
[1760739727310,31.728,3873.6,3873.3,0.001]
[1760739727511,1.728,3873.3,3873.1,0.001]
[1760739727711,32.01376626,3873.2,3873.1,0.001]
[1760739728064,25.710232,3872.2,3872.0,0.224]
[1760739728214,0.0450019,3872.5,3871.8,0.466]
[1760739728215,1.728,3871.9,3871.8,0.466]
[1760739728541,17.485154,3871.9,3871.8,0.466]
[1760739728741,16.717157,3871.9,3871.8,0.466]
[1760739729643,27.2366414,3871.9,3871.8,0.466]
[1760739729942,25.1897624,3871.9,3871.8,0.466]
[1760739730659,25.8096194,3871.9,3871.8,0.466]
[1760739730825,19.7117024,3871.9,3871.8,0.466]
[1760739731022,13.9827144,3871.9,3871.8,0.466]
[1760739731243,13.0721754,3871.9,3871.8,0.466]
[1760739731552,21.4610744,3871.9,3871.8,0.466]
[1760739731745,19.4680744,3871.9,3871.8,0.466]
[1760739732644,21.6282674,3871.9,3871.8,0.466]
[1760739733241,21.6282674,3871.9,3871.7,0.2326]
[1760739733242,17.55967,3871.8,3871.7,0.2326]
[1760739733423,18.09796808,3871.8,3871.7,0.2326]
[1760739733627,17.04212108,3871.8,3871.7,0.6986]
[1760739733954,14.18690008,3871.8,3871.7,0.6986]
[1760739734650,26.92269508,3871.8,3871.7,0.6986]
[1760739735052,19.18661,3871.6,3871.5,0.2326]
[1760739735357,21.33190081,3871.6,3871.5,2.81557817]
[1760739735528,1.728,3872.0,3871.6,2.58291145]
[1760739735729,5.40653516,3872.1,3871.7,0.466]
[1760739735730,16.466746,3871.8,3871.7,0.466]
[1760739735953,15.157266,3871.8,3871.7,0.466]
[1760739736656,16.92938525,3871.8,3871.7,0.466]
[1760739736830,16.15438525,3871.8,3871.7,0.466]
[1760739737030,15.07970525,3871.8,3871.7,0.466]
[1760739737640,17.99823625,3871.8,3871.7,0.466]
[1760739737837,20.33871339,3871.8,3871.7,0.466]
[1760739738141,17.371049,3871.7,3871.6,0.001]
[1760739738338,22.77758416,3871.7,3871.6,0.001]
[1760739738534,22.88078416,3871.7,3871.6,0.001]
[1760739738782,37.77672532,3871.7,3871.6,0.001]
[1760739739541,37.67352532,3871.7,3871.6,0.001]
[1760739739853,37.77672532,3871.7,3871.6,0.001]
[1760739740382,15.353966,3871.4,3871.3,0.001]
[1760739740670,24.31916773,3871.4,3871.3,0.001]
[1760739740993,24.42236773,3871.4,3871.3,0.001]
[1760739741138,24.72444918,3871.4,3871.3,0.001]
[1760739741338,24.72444918,3871.4,3869.3,0.2326]
[1760739741339,30.0,3871.0,3869.3,0.2326]
[1760739741540,5.40653516,3870.2,3869.4,0.466]
[1760739741837,1.728,3870.8,3870.1,0.2326]
[1760739742061,5.40653516,3870.5,3870.1,0.2326]
[1760739742271,15.492738,3870.2,3869.3,0.2326]
[1760739742473,0.02573222,3870.4,3869.5,2.58429737]
[1760739742474,6.01617,3869.9,3869.5,2.58429737]
[1760739742672,6.01617,3869.9,3869.4,0.466]
[1760739742673,6.35626959,3869.9,3869.4,2.58437631]
[1760739742972,9.713934,3869.7,3869.6,0.466]
[1760739743154,1.728,3869.5,3869.3,0.2326]
[1760739743468,4.397882,3869.4,3869.3,2.81704679]
[1760739743673,1.728,3869.4,3869.3,2.81704679]
[1760739743877,1.728,3869.4,3869.3,3.28304679]
[1760739745652,2.13337864,3869.4,3869.3,3.28304679]
[1760739749253,2.13337864,3869.4,3869.3,2.58444679]
[1760739749457,1.728,3869.3,3869.1,0.99406089]
[1760739749662,0.02573222,3869.3,3869.2,2.58451359]
[1760739750390,0.02573222,3869.3,3869.1,0.2166]
[1760739750391,9.01608264,3869.4,3869.3,2.58444679]
[1760739751385,2.13337864,3869.4,3869.3,3.04004679]
[1760739751587,2.13337864,3869.4,3869.3,2.58444679]
[1760739752161,2.13337864,3869.4,3869.3,3.04004679]
[1760739753374,0.74547823,3869.4,3869.2,2.58445726]
[1760739753576,0.40537864,3869.4,3869.3,2.58444679]
[1760739753807,0.71602674,3870.3,3869.4,2.58438]
[1760739754005,1.728,3870.5,3869.4,0.4556]
[1760739754169,1.728,3870.1,3870.0,2.58397932]
[1760739754501,1.728,3870.6,3870.1,2.58389928]
[1760739754673,1.728,3870.2,3870.1,2.58389928]
[1760739754873,4.699605,3870.2,3870.1,2.58389928]
[1760739755073,1.728,3870.4,3870.2,2.58384327]
[1760739755301,5.40653516,3870.7,3870.0,0.77740447]
[1760739755302,1.728,3870.1,3870.0,3.36133291]
[1760739755487,1.728,3870.6,3870.1,2.58390124]
[1760739755681,1.728,3870.2,3870.1,2.58390124]
[1760739755912,13.036555,3870.2,3870.1,2.58390124]
[1760739756597,8.793668,3870.2,3870.1,2.58390124]
[1760739756975,5.40653516,3870.7,3870.4,2.58367286]
[1760739757205,2.89931252,3870.6,3870.5,2.58364552]
[1760739757377,2.63545152,3870.6,3870.5,2.58364552]
[1760739757577,1.728,3870.6,3870.5,2.58364552]
[1760739757801,6.966841,3870.6,3870.5,2.58364552]
[1760739758000,6.036236,3870.6,3870.5,2.58364552]
[1760739758207,4.89104,3870.6,3870.5,2.58364552]
[1760739758512,2.84751977,3870.6,3870.5,2.58364552]
[1760739761315,2.13329177,3870.6,3870.5,2.58364552]
[1760739761486,4.81289377,3870.6,3870.5,2.58364552]
[1760739761886,4.407602,3870.6,3870.5,2.58364552]
[1760739762119,1.728,3870.6,3870.5,3.03924552]
[1760739762492,0.002,3870.9,3870.8,2.58344528]
[1760739762918,0.002,3870.9,3870.8,3.03904528]
[1760739763221,0.002,3870.9,3870.8,3.81624835]
[1760739765524,0.002,3870.9,3870.8,4.71459025]
[1760739765746,0.1308,3870.9,3870.8,4.71459025]
[1760739766291,0.002,3870.9,3870.8,3.36064835]
[1760739767227,0.002,3870.9,3870.8,3.81624835]
[1760739769037,0.002,3870.9,3870.8,3.8420828]
[1760739769443,0.002,3870.9,3870.8,3.81624835]
[1760739773043,0.002,3870.9,3870.8,3.77124645]
[1760739773214,0.002,3870.9,3870.8,4.41960361]
[1760739774536,0.002,3870.9,3870.8,4.42060361]
[1760739776349,0.002,3870.9,3870.8,4.44643806]
[1760739777330,0.002,3870.9,3870.8,3.96500361]
[1760739777542,0.002,3870.9,3870.8,3.31664645]
[1760739781235,2.0369,3870.9,3870.8,0.77820307]
[1760739781753,20.579121,3870.9,3870.8,0.77820307]
[1760739781959,20.579121,3870.9,3870.8,0.001]
[1760739782647,21.539432,3870.9,3870.8,0.001]
[1760739782861,19.569074,3870.9,3870.8,0.001]
[1760739783768,23.173859,3870.9,3870.8,0.001]
[1760739783975,20.731407,3870.9,3870.8,0.001]
[1760739784679,22.92084628,3870.9,3870.8,0.001]
[1760739784839,23.32614494,3870.9,3870.8,0.001]
[1760739785038,22.89839894,3870.9,3870.8,0.001]
[1760739785241,19.56062894,3870.9,3870.8,0.001]
[1760739785740,20.03077194,3870.9,3870.8,0.001]
[1760739786051,19.31477194,3870.9,3870.8,0.001]
[1760739786673,21.28784394,3870.9,3870.8,0.001]
[1760739787172,17.67564594,3870.9,3870.8,0.001]
[1760739787741,39.52597644,3870.9,3870.8,0.001]
[1760739788242,37.33675544,3870.9,3870.8,0.001]
[1760739788642,39.52597644,3870.9,3870.8,0.001]
[1760739790481,39.31056644,3870.9,3870.8,0.001]
[1760739790875,37.13157544,3870.9,3870.8,0.001]
[1760739791068,33.60985594,3870.9,3870.8,0.001]
[1760739791986,37.49261394,3870.9,3870.8,0.001]
[1760739792787,38.78879694,3870.9,3870.8,0.001]
[1760739793585,15.6852126,3870.9,3870.8,0.001]
[1760739793888,8.16004228,3870.9,3870.8,3.02234528]
[1760739794055,6.43204228,3870.9,3870.8,3.02234528]
[1760739794388,8.16004228,3870.9,3870.8,3.02234528]
[1760739794591,8.115,3870.9,3870.8,3.02234528]
[1760739796888,8.56528124,3870.9,3870.8,3.02234528]
[1760739798671,8.52024392,3870.9,3870.8,3.02234528]
[1760739800391,8.52024392,3870.9,3870.8,2.58444528]
[1760739800963,8.56528139,3870.9,3870.8,2.58444528]
[1760739801163,0.04703747,3870.9,3870.8,3.66065658]
[1760739801575,0.04703747,3870.9,3870.8,4.43777711]
[1760739805324,0.04703747,3870.9,3870.8,3.79946581]
[1760739806986,0.04703747,3870.9,3870.8,3.82530026]
[1760739807188,0.04703747,3870.9,3870.8,3.79946581]
[1760739807608,0.002,3870.9,3870.8,3.79946581]
[1760739811990,0.04702859,3870.9,3870.8,3.79946581]
[1760739812190,0.04702859,3870.9,3870.8,4.45065026]
[1760739814927,0.04702859,3870.9,3870.8,3.36156581]
[1760739815100,0.35502859,3870.9,3870.8,3.36156581]
[1760739815624,0.35502859,3870.9,3870.8,2.58444528]
[1760739816197,0.35502859,3870.9,3870.8,0.001]
[1760739817099,0.31,3870.9,3870.8,0.001]
[1760739817315,1.67417324,3870.9,3870.8,0.001]
[1760739817634,1.67417324,3870.9,3870.8,2.58444528]
[1760739818294,1.67417324,3870.9,3870.8,0.001]
[1760739819314,1.67417324,3870.9,3870.8,2.58444528]
[1760739820221,1.71920818,3870.9,3870.8,2.58444528]
[1760739820807,1.41120818,3870.9,3870.8,2.58444528]
[1760739821036,0.04703494,3870.9,3870.8,3.04644528]
[1760739821534,0.04703494,3870.9,3870.8,2.58444528]
[1760739822039,0.04703494,3870.9,3870.8,3.04644528]
[1760739826229,0.04703494,3870.9,3870.8,3.17524528]
[1760739828744,0.002,3870.9,3870.8,3.17524528]
[1760739831829,0.04703028,3870.9,3870.8,3.17524528]
[1760739834244,0.04703028,3870.9,3870.8,3.75112706]
[1760739839366,0.04703028,3870.9,3870.8,3.17524528]
[1760739841069,0.04703028,3870.9,3870.8,3.20107973]
[1760739841645,0.04703028,3870.9,3870.8,3.17524528]
[1760739848586,0.04703028,3870.9,3870.8,2.71324528]
[1760739853310,0.04703028,3870.9,3870.8,3.18014528]
[1760739853511,1e-08,3870.9,3870.8,3.75910058]
[1760739853720,1e-08,3870.9,3870.8,3.88790058]
[1760739853888,0.002,3871.3,3871.2,2.58317834]
[1760739854091,0.04702497,3871.3,3871.2,2.58317834]
[1760739854306,0.04702497,3871.3,3871.2,3.05007834]
[1760739854618,0.002,3871.3,3871.2,3.82708012]
[1760739854999,0.002,3871.3,3871.2,3.36018012]
[1760739857489,0.1051,3871.3,3871.2,3.36018012]
[1760739858086,21.00055323,3871.3,3870.8,0.001]
[1760739858319,30.99309129,3870.9,3870.8,0.001]
[1760739858498,19.240787,3870.7,3870.4,0.001]
[1760739858696,22.78703929,3870.5,3870.4,0.001]
[1760739858890,20.16709929,3870.1,3869.3,0.001]
[1760739859090,34.24003604,3870.1,3869.3,0.001]
[1760739859290,32.33559302,3870.1,3869.3,0.001]
[1760739859690,32.74100514,3870.1,3869.3,0.001]
[1760739859901,27.31095414,3870.1,3869.3,0.001]
[1760739860113,31.15807914,3870.1,3869.3,0.001]
[1760739860307,30.50746716,3870.1,3869.3,0.001]
[1760739860504,28.94017616,3870.1,3869.3,0.001]
[1760739860704,21.49507416,3870.1,3869.3,0.001]
[1760739861099,34.69428816,3870.1,3869.3,0.001]
[1760739861295,10.42563287,3870.1,3869.3,0.001]
[1760739861512,11.44765174,3870.1,3869.3,0.001]
[1760739861710,11.44765174,3870.1,3869.5,2.58426117]
[1760739862022,11.44765174,3870.1,3869.3,0.001]
[1760739862186,28.59211206,3870.1,3869.3,0.001]
[1760739862622,28.18669994,3870.1,3869.3,0.001]
[1760739863191,35.24961694,3870.1,3869.3,0.001]
[1760739863391,31.64961694,3870.1,3869.3,2.58540568]
[1760739863587,28.41221694,3870.1,3869.3,0.001]
[1760739863791,19.40079794,3870.1,3869.5,2.58428497]
[1760739863992,15.61576394,3870.1,3869.6,2.58421412]
[1760739864302,15.61576394,3870.1,3869.3,0.001]
[1760739864303,22.89576394,3870.1,3869.3,0.001]
[1760739864825,22.89576394,3870.1,3869.4,2.5843737]
[1760739864992,17.18252394,3870.1,3869.4,2.5843737]
[1760739865188,17.76040594,3870.1,3869.3,0.001]
[1760739865404,17.76040594,3870.1,3869.4,2.58436177]
[1760739865600,15.76686524,3870.1,3869.3,2.58544364]
[1760739865809,13.27054924,3870.1,3869.6,2.58423964]
[1760739866216,4.76187563,3870.1,3869.5,2.58430687]
[1760739866405,4.77167863,3870.1,3869.8,2.58409965]
[1760739866721,4.87377863,3870.1,3869.8,2.58410171]
[1760739866910,4.87377863,3870.1,3869.8,2.5841028]
[1760739867120,0.45042963,3870.1,3870.0,2.58497932]
[1760739867319,0.45042963,3870.1,3870.0,3.05187932]
[1760739867622,0.4053843,3870.1,3870.0,0.001]
[1760739867926,0.4053843,3870.1,3870.0,2.58497932]
[1760739868826,0.4053843,3870.1,3870.0,3.01827932]
[1760739871926,0.1738411,3870.1,3870.0,3.01827932]
[1760739872836,0.1738411,3870.1,3870.0,3.04411911]
[1760739873053,0.1738411,3870.1,3870.0,3.01827932]
[1760739873476,0.0450411,3870.1,3870.0,3.01827932]
[1760739873963,0.002,3871.3,3871.2,2.58317834]
[1760739874330,0.1288,3871.2,3871.1,2.58324507]
[1760739874535,0.04703395,3871.3,3871.2,2.58317834]
[1760739875361,0.1288,3871.2,3870.9,2.58336858]
[1760739875561,0.1288,3871.0,3870.8,2.58340455]
[1760739875765,0.099,3871.1,3870.8,2.58340455]
[1760739875967,0.099,3871.1,3870.9,2.58336433]
[1760739876183,0.099,3871.1,3870.6,2.58356923]
[1760739876184,0.1288,3870.6,3870.2,0.1288]
[1760739876334,0.1288,3870.6,3870.2,0.5621]
[1760739876533,0.1288,3870.6,3870.3,0.4333]
[1760739876891,0.17383525,3870.6,3870.5,2.58364552]
[1760739882595,0.17383525,3870.6,3870.3,2.58376855]
[1760739882798,0.1288,3870.3,3870.2,2.58378743]
[1760739883005,1.728,3870.4,3870.3,2.58377903]
[1760739883503,2.23338376,3870.4,3870.3,2.58377903]
[1760739884003,2.13328376,3870.4,3870.3,2.58377903]
[1760739884234,0.40528376,3870.4,3870.3,3.01707903]
[1760739884496,0.40528376,3870.4,3870.3,2.58377903]
[1760739886197,0.40528376,3870.4,3870.3,3.01707903]
[1760739886897,0.04503525,3870.6,3870.5,2.58364552]
[1760739888436,1.728,3870.5,3870.2,2.58379861]
[1760739888733,1.8301,3870.5,3870.2,2.58383869]
[1760739888897,1.8301,3870.5,3870.1,2.5838924]
[1760739889928,2.23540709,3870.5,3870.1,2.5838924]
[1760739890528,6.129238,3870.4,3870.1,2.5838924]
[1760739890730,4.119544,3870.3,3870.0,0.001]
[1760739890917,0.02573222,3870.2,3870.0,0.001]
[1760739891117,0.12783222,3870.2,3870.0,0.001]
[1760739891313,0.1021,3870.1,3870.0,0.001]
[1760739892029,8.50648074,3870.1,3870.0,0.001]
[1760739892505,10.23448074,3870.1,3870.0,0.001]
[1760739893112,18.86677774,3870.1,3870.0,0.001]
[1760739893319,16.28900374,3870.1,3870.0,0.001]
[1760739893515,15.88366629,3870.1,3870.0,0.001]
[1760739893717,22.27366629,3870.1,3870.0,0.001]
[1760739894133,21.44407829,3870.1,3870.0,0.001]
[1760739894635,19.25685029,3870.1,3870.0,0.001]
[1760739895138,20.95463329,3870.1,3870.0,0.001]
[1760739895442,20.35771565,3870.1,3870.0,0.001]
[1760739896044,29.89040965,3870.1,3870.0,0.001]
[1760739896552,1.728,3869.8,3869.2,0.001]
[1760739896724,1.728,3869.3,3869.2,0.001]
[1760739897050,1.728,3868.9,3868.0,0.01771403]
[1760739897225,6.54721965,3868.1,3868.0,2.60302943]
[1760739898745,1.728,3868.1,3868.0,3.03632943]
[1760739899283,6.54721965,3868.1,3868.0,0.01771403]
[1760739899453,6.54721965,3868.1,3868.0,2.60302943]
[1760739899825,6.54721965,3868.1,3868.0,0.01771403]
[1760739900027,14.50778965,3868.1,3868.0,0.01771403]
[1760739900332,6.54721965,3868.1,3868.0,0.01771403]
[1760739900520,11.31066365,3868.1,3868.0,0.01771403]
[1760739900717,1.728,3868.1,3868.0,2.60302943]
[1760739900929,1.728,3868.1,3868.0,3.06542943]
[1760739901317,6.54721965,3868.1,3868.0,3.06542943]
[1760739901519,6.54721965,3868.1,3868.0,0.01771403]
[1760739901718,6.54721965,3868.1,3868.0,2.60302943]
[1760739901918,6.59228259,3868.1,3868.0,2.60302943]
[1760739904669,6.59228259,3868.1,3868.0,3.06072943]
[1760739904670,0.04506294,3868.1,3868.0,3.06072943]
[1760739905057,1e-08,3868.1,3868.0,3.06072943]
[1760739905258,4.81921965,3869.4,3869.3,2.58444679]
[1760739905467,4.81921965,3869.4,3869.3,3.04214679]
[1760739905779,6.54721965,3869.4,3869.3,3.04214679]
[1760739906146,6.95260425,3869.4,3869.3,2.58444679]
[1760739907481,1.728,3869.3,3869.2,2.58449478]
[1760739908478,1.77305301,3869.3,3869.2,2.58449478]
[1760739908845,1.728,3869.3,3869.2,2.58449478]
[1760739909045,1.728,3869.3,3869.2,3.04219478]
[1760739909993,0.4053846,3869.4,3869.3,2.58444679]
[1760739910193,0.5341846,3869.4,3869.3,3.04214679]
[1760739910870,6.39,3870.5,3869.3,0.48354446]
[1760739911070,0.1288,3869.9,3869.8,2.58411287]
[1760739911281,0.53413831,3869.9,3869.8,3.04181287]
[1760739912000,0.40533831,3869.9,3869.8,3.04181287]
[1760739912905,0.45038226,3869.9,3869.8,3.04181287]
[1760739913101,2.17838226,3869.9,3869.8,2.58411287]
[1760739913594,0.1288,3869.8,3869.7,2.58416875]
[1760739913897,2.17838226,3869.9,3869.7,2.58416875]
[1760739914191,2.17838226,3869.9,3869.8,2.58411287]
[1760739914498,2.17838226,3869.9,3869.7,2.58417764]
[1760739914499,2.47038226,3869.9,3869.7,2.58417764]
[1760739914696,2.47038226,3869.9,3869.6,2.58422655]
[1760739914871,2.47038226,3869.9,3869.7,2.58416498]
[1760739915194,2.47038226,3869.9,3869.8,2.58411287]
[1760739915195,2.17838226,3869.9,3869.8,2.58411287]
[1760739915986,1.77304395,3869.9,3869.8,2.58411287]
[1760739916188,1.87204395,3869.9,3869.8,2.58411287]
[1760739916668,1.77304395,3869.9,3869.8,2.58411287]
[1760739916869,1.77304395,3869.9,3869.8,3.04181287]
[1760739917180,0.04504395,3869.9,3869.8,3.04181287]
[1760739917380,0.04504395,3869.9,3869.8,2.58411287]
[1760739917967,1.77304395,3869.9,3869.8,2.58411287]
[1760739918394,1.728,3869.9,3869.8,3.04181287]
[1760739918594,1.728,3869.9,3869.8,2.58411287]
[1760739919410,0.40532496,3870.1,3870.0,2.58397932]